[Event "American Cup Women Champions 2023"]
[Site "Saint Louis"]
[Date "2023.03.18"]
[Round "1.2"]
[White "Abrahamyan, Tatev"]
[Black "Krush, Irina"]
[Result "0-1"]
[ECO "B43"]
[WhiteElo "2294"]
[BlackElo "2432"]
[Annotator "TA"]
[PlyCount "104"]
[EventDate "2023.03.15"]
[EventType "k.o."]
[EventCountry "USA"]
[SourceTitle "playchess.com"]
[Source "ChessBase"]
[SourceQuality "1"]
[TimeControl "5400+30"]

{[%evp 15,104,25,45,6,8,0,31,43,53,17,15,40,37,41,48,-2,70,14,8,15,18,13,18,-6,0,0,0,0,0,-12,-19,-29,-28,-33,-22,-32,-29,-26,-28,-24,-35,-24,0,-23,-30,-51,-54,-70,-70,-100,-103,-193,-189,-215,-223,-244,-241,-230,-207,-187,-207,-197,-195,-225,-213,-213,-213,-226,-148,-638,-635,-607,-599,-558,-451,-645,-503,-6361,-5606,-4124,-5077,-2012,-1389,-6083,-5803,-5197,-2281,-29940,-29940,-12820,-6254]} 1. e4 {[%emt 0:00:03]} c5 {[%emt 0:00:13]} 2. Nf3 {[%emt 0:00:09]} e6 {[%emt 0:00:08]} 3. d4 {[%emt 0:00:06]} cxd4 {[%emt 0:00:07]} 4. Nxd4 {[%emt 0:00:04]} a6 {[%emt 0:00:16]} 5. Nc3 {[%emt 0:00:46]} b5 {[%emt 0:00:32]} 6. Bd3 {[%emt 0:00:46]} Bb7 {[%emt 0:00:18]} 7. O-O {[%emt 0:02:29]} Nc6 {[%emt 0:00:14]} 8. Nxc6 {[%emt 0:02:41]} Bxc6 {[%emt 0:00:10]} 9. a4 {[%emt 0:02:56][%cal Ra4b5] B43: Sicilian: Kan Variation: 5 Nc3.} (9. Re1 $5) 9... b4 {[%emt 0:03:27]} 10. Nb1 {[%emt 0:00:43][%cal Bc3b1,Bb1d2,Bd2b3][%mdl 32]} Bc5 {[%emt 0:15:50]} 11. Nd2 {[%emt 0:06:20] White is slightly better.} Ne7 {[%emt 0:00:09] [#]} 12. Nb3 $146 {[%emt 0:04:03]} (12. Qh5 $5 {[%cal Rh5c5]} d5 13. a5 $11) ({Predecessor:} 12. Qe2 a5 13. b3 Ng6 14. Bb2 O-O 15. Qh5 d6 16. Rad1 Nf4 17. Qg4 e5 18. Nc4 {0-1 Smith,B (2456)-Vorobiov,E (2585) Pardubice Czech op-A 24th 2013 (8)}) 12... Bd6 {[%emt 0:07:45]} 13. Qe2 {[%emt 0:18:53]} Ng6 {[%emt 0:02:37]} 14. f4 {[%emt 0:07:04]} O-O {[%emt 0:00:44]} 15. a5 {[%emt 0:14:02]} ({Better is} 15. g3 $1 $14) 15... Qb8 {[%emt 0:08:38]} (15... e5 $11) 16. e5 {[%emt 0:09:00]} (16. Bxa6 $2 {is the wrong capture.} Qa7+ 17. Be3 Qxa6 $19) ({White should try} 16. g3 $1 $14) 16... Be7 {[%emt 0:00:07]} 17. Be3 {[%emt 0:04:08]} (17. Bxa6 $2 {too greedy.} Qa7+ 18. Be3 Qxa6 $19) 17... d6 {[%emt 0:19:33]} 18. exd6 {[%emt 0:06:49]} Bxd6 {[%emt 0:00:45]} 19. Qh5 {[%emt 0:03:03]} ({Worse is} 19. Bxa6 Nxf4 20. Bxf4 Bxf4 $17) (19. g3 $5 {[%cal Rd3a6]}) 19... Qb7 {[%emt 0:02:56]} 20. Rf2 {[%emt 0:03:38]} Be4 {[%emt 0:08:32]} 21. Rd1 {[%emt 0:04:11]} Be7 {[%emt 0:00:02]} 22. Bxe4 {[%emt 0:05:11]} Qxe4 {[%emt 0:00:05]} 23. Qf3 {[%emt 0:00:05]} Qxf3 {[%emt 0:08:25]} 24. Rxf3 {[%emt 0:00:03]} Bf6 {[%emt 0:00:10]} 25. Bd4 {[%emt 0:01:58]} Rfd8 {[%emt 0:00:31][%cal Og6f4]} 26. g3 {[%emt 0:00:52]} e5 {[%emt 0:01:57]} 27. fxe5 {[%emt 0:00:23]} Nxe5 {[%emt 0:00:03]} 28. Rff1 {[%emt 0:00:57]} Rac8 {[%emt 0:03:17]} 29. c3 {[%emt 0:01:02]} (29. Rde1 $5 {[%cal Rd4e5]} Nd7 30. Bxf6 Nxf6 31. Re2 $11) 29... bxc3 {[%emt 0:04:11]} 30. bxc3 {[%emt 0:00:05]} Rd5 {[%emt 0:02:04]} 31. Bxe5 {[%emt 0:02:38]} Rxe5 {[%emt 0:00:37]} 32. Rf3 {[%emt 0:00:28]} Rb5 {[%emt 0:01:05]} 33. Nd4 {[%emt 0:00:35]} (33. c4 $17 Rxc4 34. Rd6) 33... Rxa5 $19 {[%emt 0:00:41]} 34. Nf5 {[%emt 0:00:33]} h5 {[%emt 0:01:58]} (34... Rxc3 $2 35. Rxc3 h6 36. Rc8+ Kh7 37. Nd6 $18) 35. Rd7 {[%emt 0:00:35]} Rxc3 {[%emt 0:01:23]} 36. Nh6+ {[%emt 0:00:20]} Kh7 {[%emt 0:01:36]} 37. Rxc3 {[%emt 0:00:22]} Bxc3 {[%emt 0:00:05]} 38. Nxf7 {[%emt 0:00:03][%mdl 4096] Endgame KRB-KRN} Bf6 {[%emt 0:01:09]} 39. h4 {[%emt 0:01:08]} Kg6 {[%emt 0:03:14]} 40. Kg2 {[%emt 0:00:34]} Ra2+ {[%emt 0:00:54]} 41. Kh3 {[%emt 0:00:25]} Re2 {[%emt 0:00:21] [#] Strongly threatening ...Re7.} 42. Ra7 {[%emt 0:00:44][%mdl 8192] Now White is beyond hope.} (42. Ng5 $17) 42... Re7 {[%emt 0:01:26]} 43. Nh8+ {[%emt 0:00:22]} Kh7 {[%emt 0:00:19]} 44. Ra8 {[%emt 0:00:14]} Rd7 {[%emt 0:01:36] And now ...Rd8 would win.} 45. Kg2 {[%emt 0:00:41]} (45. Rxa6 $142 Kxh8 46. Ra5) 45... Rd8 {[%emt 0:01:18]} 46. Rxd8 {[%emt 0:00:30]} (46. Rxa6 $142 Rxh8 47. Kf3) 46... Bxd8 {[%emt 0:00:02] KB-KN} 47. Nf7 {[%emt 0:00:04]} Bc7 {[%emt 0:00:49]} 48. Ng5+ {[%emt 0:00:34]} Kg6 {[%emt 0:00:03]} 49. Ne6 {[%emt 0:00:43]} Bd6 {[%emt 0:00:04] [#] ...a5 is the strong threat.} 50. Kf3 {[%emt 0:00:10]} a5 {[%emt 0:00:17][%cal Ba6a5,Ba5a4][%mdl 32]} 51. g4 {[%emt 0:00:31]} hxg4+ {[%emt 0:00:34]} 52. Kxg4 {[%emt 0:00:03]} a4 {[%emt 0:00:21] Weighted Error Value: White=0.75/Black=0.07 (flawless)} 0-1

[Event "American Cup Women Champions 2023"]
[Site "Saint Louis"]
[Date "2023.03.17"]
[Round "1.3"]
[White "Zatonskih, Anna"]
[Black "Paikidze, Nazi"]
[Result "1/2-1/2"]
[ECO "D32"]
[WhiteElo "2337"]
[BlackElo "2314"]
[Annotator "TA"]
[PlyCount "206"]
[EventDate "2023.03.15"]
[EventType "k.o."]
[EventCountry "USA"]
[SourceTitle "playchess.com"]
[Source "ChessBase"]
[SourceQuality "1"]
[TimeControl "5400+30"]

{[%evp 19,206,0,23,9,0,0,0,0,0,0,0,0,0,0,0,0,0,-44,0,-9,0,-43,-10,-29,-22,-14,-24,-17,-34,-60,-12,-18,-27,-29,-16,-37,0,-27,-12,-12,0,0,0,0,0,0,0,0,0,-36,-35,-35,-38,-37,-38,-643,0,0,0,0,0,-62,-28,-28,-28,-62,-25,-71,-25,-87,-87,-95,-77,-79,-28,-28,-28,-28,-28,-63,-27,-48,-28,-125,-27,-27,-27,-28,-28,-44,-50,-50,-33,-33,-25,-25,-25,-25,-25,-25,-25,-25,-25,-33,-25,-33,-25,-33,-14,-14,-14,-28,-28,-28,-28,-28,-28,-28,-28,-33,-28,-28,0,-33,-29,-33,-20,-28,-28,-29,-28,-28,-28,-33,-27,-29,-28,-30,-29,-30,-29,-33,-14,-30,-30,-30,-30,-33,-33,-33,-8,-35,-35,-55,-55,-55,-55,-55,-55,-55,-8,-21,-8,-8,-8,-8,-8,-8,0,-8,0,-8,-8,-8,-9,-12,0,-8,-8,-9,0,0,0,-8,0,-8,-8,-8,-8]} 1. d4 {[%emt 0:00:03]} c5 {[%emt 0:00:05]} 2. e3 {[%emt 0:06:03]} Nf6 {[%emt 0:00:37]} 3. Nf3 {[%emt 0:06:07]} d5 {[%emt 0:00:09]} 4. dxc5 {[%emt 0:04:10]} e6 {[%emt 0:00:18]} 5. c4 {[%emt 0:04:27]} Bxc5 {[%emt 0:00:48]} 6. Nc3 {[%emt 0:01:16]} O-O {[%emt 0:01:56]} 7. a3 {[%emt 0:03:13]} a5 {[%emt 0:03:41]} 8. cxd5 {[%emt 0:03:45]} exd5 {[%emt 0:02:21]} 9. Be2 {[%emt 0:00:39]} Nc6 {[%emt 0:01:11]} 10. O-O {[%emt 0:05:38]} h6 {[%emt 0:04:39]} 11. Nb5 {[%emt 0:19:09] [#] D32: Tarrasch Defence: Sidelines and lines without g3.} Ne4 $146 {[%emt 0:07:13]} ({Predecessor:} 11... Bg4 12. h3 Bd7 13. b3 Re8 14. Bb2 Be6 15. Rc1 Be7 16. Nfd4 Qb6 17. Bd3 Ne5 18. Bb1 Rec8 19. Nxe6 Rxc1 20. Qxc1 fxe6 {1-0 Langner,D (1972)-De Souza,L (1927) Campo Grande op 2nd 2014 (2)}) 12. b3 {[%emt 0:12:36]} Qf6 {[%emt 0:07:21]} 13. Ra2 {[%emt 0:00:13][%cal Ba1a2,Ba2c2,Bc2c1][%mdl 32]} Qg6 {[%emt 0:16:21]} 14. Rc2 {[%emt 0:08:56]} Bb6 {[%emt 0:06:34] Against Nc7} (14... Bh3 15. Ne1 $16) 15. Bb2 {[%emt 0:02:56]} Bh3 {[%emt 0:05:24][%csl Gh3][%cal Rg6g2]} 16. Ne1 {[%emt 0:00:28]} Bf5 {[%emt 0:02:02]} 17. Rc1 {[%emt 0:03:08]} Rac8 {[%emt 0:01:32]} 18. Nd3 {[%emt 0:01:18]} (18. Qxd5 $2 Rfd8 19. Qc4 Na7 $19) 18... Rfd8 {[%emt 0:05:16]} (18... Bh3 $2 19. Nf4 Qh7 20. gxh3 $18) 19. Ne5 {[%emt 0:01:17]} Qg5 {[%emt 0:03:59]} 20. Nxc6 {[%emt 0:05:49]} Rxc6 {[%emt 0:07:32]} (20... bxc6 $5 21. Nd4 Bxd4 22. Qxd4 c5 $17) 21. Rxc6 {[%emt 0:00:46]} bxc6 {[%emt 0:00:09][%cal Bb7c6,Bc6c5,Bc5c4][%mdl 32]} 22. Nd4 {[%emt 0:00:02]} Bh3 {[%emt 0:07:32][%csl Gh3][%cal Rg5g2]} 23. Bf3 {[%emt 0:00:08]} c5 {[%emt 0:01:02]} 24. Ne2 {[%emt 0:02:18]} Bc8 {[%emt 0:01:22]} (24... Bf5 $15 25. Re1 d4 26. exd4 cxd4 27. Nxd4 Nd2 {[%mdl 64] Decoy}) 25. Ng3 {[%emt 0:02:13]} (25. Nf4 {feels hotter.} Qf5 26. Qd3 Ng5 27. Be2) 25... Nxg3 {[%emt 0:02:20]} 26. hxg3 {[%emt 0:00:01]} Be6 {[%emt 0:01:57][%cal Bc8e6,Be6f5,Bf5d3][%mdl 32]} 27. Qe2 {[%emt 0:01:58]} c4 {[%emt 0:02:54]} 28. b4 {[%emt 0:00:38]} axb4 {[%emt 0:03:23]} 29. axb4 {[%emt 0:00:00]} Bf5 {[%emt 0:00:15] White must now prevent ...Bd3.} 30. Ra1 {[%emt 0:01:47]} Bd3 {[%emt 0:00:30]} 31. Qe1 {[%emt 0:00:02]} Re8 $36 {[%emt 0:00:51][%cal Od5d4][%mdl 2048] White is under pressure.} 32. Qc3 {[%emt 0:01:58][%cal Of3d5]} Kh7 {[%emt 0:01:46]} 33. Bxd5 {[%emt 0:01:18][%mdl 64] Double Attack} Rxe3 $1 {[%emt 0:00:58]} 34. Bxc4 {[%emt 0:02:02]} (34. fxe3 $2 Bxe3+ 35. Kh2 Qh5#) 34... Bxc4 {[%emt 0:01:36]} 35. Qxc4 {[%emt 0:00:02]} (35. fxe3 Bxe3+ $19) 35... Rxg3 {[%emt 0:00:26]} 36. Qe4+ {[%emt 0:00:53]} (36. Qxf7 $2 {is the wrong capture.} Rxg2+ 37. Kh1 Rxf2 38. Qxg7+ Qxg7 $19) 36... f5 {[%emt 0:00:03]} 37. Qb7 {[%emt 0:01:04][%mdl 8192] [#]} (37. Qd5 $15) 37... Qg4 $1 {[%emt 0:02:02]} 38. Be5 $11 {[%emt 0:00:27][%cal Oe5g3]} (38. Qxb6 $2 {is a self mate.} Rxg2+ 39. Kh1 Qh3#) (38. b5 Rb3) 38... Qxb4 {[%emt 0:00:02][%cal Ob6f2] And now ...Bxf2+! would win.} 39. Qd7 {[%emt 0:00:29]} Rg5 {[%emt 0:00:39] ( -> ...Qe4)} 40. Qd5 {[%emt 0:00:39]} ({Better is} 40. Bxg7 $11 Bxf2+ {[%mdl 64] Decoy} 41. Kxf2 (41. Kf1 $2 Qc4+ 42. Kxf2 Qc2+ {[%mdl 64] Skewer} 43. Ke1 Qe4+ 44. Kd1 Rxg7 $19) 41... Qf4+ 42. Kg1 Rxg7 43. Qd5) 40... Qe4 {[%emt 0:00:44]} (40... Rg4 {is more complex.} 41. Rd1 Re4 42. Bc3 Qc5) 41. Qxe4 {[%emt 0:00:02]} fxe4 {[%emt 0:00:03][%mdl 4096] Endgame KRB-KRB} 42. Bb8 {[%emt 0:00:22]} Rf5 {[%emt 0:00:46]} 43. Ra2 {[%emt 0:00:30]} (43. Ba7 $11 {is more appropriate.} Ra5 44. Rxa5 Bxa5 45. g4) 43... Rb5 {[%emt 0:00:51]} (43... Kg6 $17) 44. Bg3 {[%emt 0:00:21]} (44. Ba7 $11 {remains equal.}) 44... Kg6 $17 {[%emt 0:00:15]} 45. Ra8 {[%emt 0:00:10]} Rb3 {[%emt 0:00:30]} 46. Kf1 {[%emt 0:01:04]} e3 {[%emt 0:00:35]} (46... Rb1+ $17 47. Ke2 Rb2+ 48. Kf1 Kf5) 47. fxe3 $11 {[%emt 0:00:38]} Bxe3 {[%emt 0:00:04]} 48. Bf2 {[%emt 0:00:38]} Bf4 {[%emt 0:00:24]} 49. Ke2 {[%emt 0:00:09]} Be5 {[%emt 0:00:18]} 50. Rd8 {[%emt 0:00:39]} Kf5 {[%emt 0:00:15]} 51. Rd3 {[%emt 0:00:39]} (51. Bd4 $11) 51... Rb2+ {[%emt 0:00:39]} (51... Rxd3 $17 52. Kxd3 Kf4) 52. Kf3 {[%emt 0:00:16]} Rb4 {[%emt 0:01:21]} 53. Bg3 $1 {[%emt 0:00:57] Against Rf4+} Bf6 {[%emt 0:00:41]} 54. Rd5+ {[%emt 0:00:12]} Ke6 {[%emt 0:00:07]} 55. Rd6+ {[%emt 0:00:13]} Ke7 {[%emt 0:00:27] aiming for ...Rb3+.} (55... Kf7 $5 {[%cal Rb4b3]} 56. Bf4 g5 $17) 56. Rd3 {[%emt 0:00:05] Dodges Rb3. Bd6+ is the strong threat.} Rb5 {[%emt 0:00:25]} 57. Bd6+ {[%emt 0:01:10]} Kf7 {[%emt 0:00:04]} 58. g4 {[%emt 0:00:21]} Kg6 {[%emt 0:00:34]} 59. Bf4 {[%emt 0:00:17]} Rb1 {[%emt 0:00:20]} 60. Kg2 {[%emt 0:00:51]} Rb4 {[%emt 0:00:35]} 61. Kf3 {[%emt 0:00:08]} Ra4 {[%emt 0:01:00]} 62. Kg3 {[%emt 0:00:16]} Ra1 {[%emt 0:00:33]} 63. Kg2 {[%emt 0:00:23]} h5 {[%emt 0:00:34]} 64. gxh5+ {[%emt 0:00:25]} Kxh5 {[%emt 0:00:02]} 65. Rd2 {[%emt 0:01:36]} Kg4 {[%emt 0:00:12]} 66. Bh2 {[%emt 0:00:10]} Ra4 {[%emt 0:00:30]} 67. Re2 {[%emt 0:00:16]} g5 {[%emt 0:00:28]} 68. Be5 {[%emt 0:01:11]} Bd8 {[%emt 0:00:02]} 69. Bh2 {[%emt 0:00:19]} Bb6 {[%emt 0:00:20]} 70. Bg1 {[%emt 0:00:05]} Bd8 {[%emt 0:00:56]} 71. Bh2 {[%emt 0:00:03]} Rd4 {[%emt 0:00:43]} 72. Bg1 {[%emt 0:00:23]} Rd1 {[%emt 0:00:13]} 73. Bf2 {[%emt 0:00:33]} Bf6 {[%emt 0:00:31]} 74. Bg3 {[%emt 0:01:02]} Bd4 {[%emt 0:00:27] Threatens to win with ...Rg1+.} 75. Bf2 {[%emt 0:00:09] Prevents Rg1+} Bc3 {[%emt 0:00:41]} 76. Rc2 {[%emt 0:00:39]} Be5 {[%emt 0:00:23]} 77. Re2 {[%emt 0:00:32]} Kf5 {[%emt 0:00:11]} 78. Bg3 {[%emt 0:00:17]} Bd4 {[%emt 0:00:10]} 79. Bf2 {[%emt 0:00:06]} Bf6 {[%emt 0:01:41]} 80. Bg3 {[%emt 0:00:09]} Bd8 {[%emt 0:00:48]} 81. Re5+ {[%emt 0:00:33]} Kg4 {[%emt 0:00:26] ...Rd2+ would be deadly.} 82. Re4+ {[%emt 0:00:04]} Kh5 {[%emt 0:00:08]} 83. Re2 {[%emt 0:00:01]} Rd3 {[%emt 0:00:16]} 84. Bh2 {[%emt 0:00:33]} Kh4 {[%emt 0:00:26]} 85. Bg1 {[%emt 0:02:29]} Bc7 {[%emt 0:00:12]} 86. Bf2+ {[%emt 0:00:17]} Kg4 {[%emt 0:00:06]} 87. Rc2 {[%emt 0:00:57]} Bf4 {[%emt 0:00:16]} 88. Ra2 {[%emt 0:00:14]} Kf5 {[%emt 0:01:00]} 89. Re2 {[%emt 0:00:37]} g4 {[%emt 0:00:17]} (89... Rc3 $15 {might be stronger.}) 90. Bg1 {[%emt 0:00:45] The position is equal.} g3 {[%emt 0:01:02]} 91. Kh3 {[%emt 0:00:34]} Rb3 {[%emt 0:00:59]} 92. Kg2 {[%emt 0:00:21]} Kg4 {[%emt 0:00:36]} 93. Rc2 {[%emt 0:00:11]} Kf5 {[%emt 0:00:55]} 94. Re2 {[%emt 0:00:06]} Rd3 {[%emt 0:00:33]} 95. Bc5 {[%emt 0:00:35]} Rd5 {[%emt 0:00:39]} 96. Bg1 {[%emt 0:00:07]} Kg4 {[%emt 0:00:31]} 97. Bb6 {[%emt 0:00:35]} Bd6 {[%emt 0:00:35]} 98. Bg1 {[%emt 0:00:50]} Rd3 {[%emt 0:00:26]} 99. Be3 {[%emt 0:00:40]} Kf5 {[%emt 0:00:12]} 100. Rd2 {[%emt 0:00:58]} Rxd2+ {[%emt 0:00:11]} 101. Bxd2 {[%emt 0:00:02]} Bf4 {[%emt 0:00:03]} 102. Be1 {[%emt 0:00:14]} Kg4 {[%emt 0:00:02]} 103. Bxg3 {[%emt 0:00:09]} Bxg3 {[%emt 0:00:03] Weighted Error Value: White=0.22 (precise) /Black=0.26 (precise)} 1/2-1/2

[Event "American Cup Women Champions 2023"]
[Site "Saint Louis"]
[Date "2023.03.17"]
[Round "1.4"]
[White "Lee, Alice"]
[Black "Pourkashiyan, Atousa"]
[Result "1-0"]
[ECO "E49"]
[WhiteElo "2362"]
[BlackElo "2313"]
[Annotator "TA"]
[PlyCount "119"]
[EventDate "2023.03.15"]
[EventType "k.o."]
[EventCountry "USA"]
[SourceTitle "playchess.com"]
[Source "ChessBase"]
[SourceQuality "1"]
[TimeControl "5400+30"]

{[%evp 23,119,31,9,0,20,23,49,39,36,11,18,23,15,12,62,43,39,49,64,54,67,74,69,72,59,65,70,51,56,51,51,51,51,59,62,51,51,51,51,51,51,51,53,59,66,56,73,66,87,49,255,8,259,255,449,445,408,401,361,361,968,916,983,968,1164,1040,2005,2092,29958,29956,29959,29957,29962,29963,29962,29963,29966,29966,29954,29955,29970,29971,29972,29972,29971,29969,29973,29974,29974,29975,29978,29979,29981,29982,29989,29990,29991,29992]} 1. d4 {[%emt 0:00:02]} Nf6 {[%emt 0:00:09]} 2. c4 {[%emt 0:00:02]} e6 {[%emt 0:00:10]} 3. Nc3 {[%emt 0:00:04]} Bb4 {[%emt 0:00:22]} 4. f3 {[%emt 0:00:03]} d5 {[%emt 0:03:15]} 5. a3 {[%emt 0:00:08]} Bxc3+ {[%emt 0:05:54]} 6. bxc3 {[%emt 0:00:06]} c5 {[%emt 0:00:30]} 7. cxd5 {[%emt 0:00:24]} exd5 {[%emt 0:04:16]} 8. e3 {[%emt 0:00:10]} O-O {[%emt 0:00:56]} 9. Bd3 {[%emt 0:01:11]} b6 {[%emt 0:05:13]} 10. Ne2 {[%emt 0:00:12]} Ba6 {[%emt 0:01:15]} 11. O-O {[%emt 0:00:12]} Bxd3 {[%emt 0:05:11]} 12. Qxd3 {[%emt 0:00:05]} Re8 {[%emt 0:01:21]} 13. c4 {[%emt 0:16:51] E49: Nimzo-Indian: Rubinstein: 5 Bd3 d5 6 a3 Bxc3+ 7 bxc3.} dxc4 {[%emt 0:06:41]} 14. Qxc4 {[%emt 0:00:14] [#]} Nbd7 $146 {[%emt 0:00:20]} ({Predecessor:} 14... Nc6 15. Rd1 Qe7 16. e4 Nxd4 17. Nxd4 cxd4 18. Bb2 Red8 19. Rxd4 Rac8 20. Qb4 Qc5 21. Qxc5 bxc5 22. Rxd8+ Rxd8 {1-0 Geiser,A-Garcia Carrillo,E W-ch WS/O/326 email 2009}) 15. e4 {[%emt 0:03:36] White is slightly better.} cxd4 {[%emt 0:03:18]} 16. Qxd4 {[%emt 0:00:44]} Nc5 {[%emt 0:11:06]} 17. Qxd8 {[%emt 0:03:29]} Raxd8 {[%emt 0:04:42]} 18. Bg5 {[%emt 0:03:22]} Ncd7 {[%emt 0:09:30]} (18... Rd6 $11) 19. Rfd1 {[%emt 0:16:36]} h6 {[%emt 0:01:01]} 20. Bh4 {[%emt 0:03:22]} g5 {[%emt 0:02:39]} 21. Bf2 {[%emt 0:02:22]} Nc5 {[%emt 0:12:26]} 22. Nd4 {[%emt 0:06:17] Prevents Nb3.} Rd7 {[%emt 0:02:48]} 23. Nf5 {[%emt 0:00:54]} Kh7 {[%emt 0:02:42]} 24. Rxd7 {[%emt 0:11:41]} Nfxd7 {[%emt 0:00:03]} 25. Nd6 {[%emt 0:02:11] White is more active.} Rf8 {[%emt 0:02:57]} 26. Rd1 {[%emt 0:01:48]} Ne5 {[%emt 0:03:37]} 27. Bxc5 {[%emt 0:05:59]} bxc5 $14 {[%emt 0:00:03][%mdl 4096] Endgame KRN-KRN} 28. Rd5 {[%emt 0:00:34][%csl LRc5,LRe5]} Rd8 $1 {[%emt 0:01:47][%cal Oc5c4]} 29. Rxe5 {[%emt 0:00:35]} Rxd6 {[%emt 0:00:03]} 30. Rxc5 {[%emt 0:00:04] And now Ra5 would win. KR-KR} Ra6 {[%emt 0:01:03] Dodges Ra5} 31. Rc3 {[%emt 0:00:11]} Kg6 {[%emt 0:01:20]} 32. Kf2 {[%emt 0:01:14]} h5 {[%emt 0:02:02]} 33. Ke3 {[%emt 0:02:15]} Rb6 {[%emt 0:03:10]} 34. g3 {[%emt 0:01:38]} f6 {[%emt 0:02:10]} 35. f4 {[%emt 0:03:24]} gxf4+ {[%emt 0:00:33]} 36. gxf4 {[%emt 0:00:42]} h4 $2 {[%emt 0:02:42] [#]} (36... Rb2 $14) 37. h3 $2 {[%emt 0:02:25]} (37. Kf3 $1 $18) 37... a5 $2 {[%emt 0:00:45][%mdl 8192] [#]} (37... Rb1 $11 {and Black is okay.}) 38. Kf3 $1 $18 {[%emt 0:02:32]} f5 $2 {[%emt 0:00:54]} (38... a4 {is a better defense.} 39. Kg4 Rb3 40. f5+ Kg7 41. Rc7+ Kg8) 39. exf5+ {[%emt 0:01:12]} Kh5 {[%emt 0:00:32] [#]} 40. f6 $1 {[%emt 0:04:44] f7 would be deadly.} Kg6 {[%emt 0:00:11]} 41. Kg4 {[%emt 0:00:18]} Kxf6 $2 {[%emt 0:00:47]} (41... Rb2 42. Rc5 a4 43. f5+ (43. Kxh4 Rb3 $16) 43... Kf7 44. Rc7+ (44. Kxh4 Rb3 $11) 44... Kxf6 45. Rc6+ (45. Kxh4 Rb3 $11) 45... Kg7 46. Rg6+ (46. Kxh4 Ra2 $16) 46... Kf7) 42. Rc5 {[%emt 0:00:14]} (42. Kxh4 Kf5 43. Rc4 Rg6 $16) 42... a4 {[%emt 0:00:33]} 43. Ra5 {[%emt 0:00:13]} (43. Kxh4 Rb3 $16) 43... Rb3 {[%emt 0:00:27]} 44. Ra6+ {[%emt 0:00:10]} ({Not} 44. Kxh4 Rxa3 45. Kg4 Kg6 $16) 44... Kg7 {[%emt 0:00:27]} 45. Rxa4 {[%emt 0:00:07] Threatening mate with Ra6.} Rg3+ {[%emt 0:00:15]} 46. Kxh4 {[%emt 0:00:05] White mates.} Rg1 {[%emt 0:00:02]} 47. Ra6 {[%emt 0:00:25]} Rf1 {[%emt 0:00:28]} 48. Kg5 {[%emt 0:00:42]} Rg1+ {[%emt 0:00:08]} 49. Kf5 {[%emt 0:00:08]} Rh1 {[%emt 0:00:07]} 50. Ra7+ {[%emt 0:01:07]} Kh6 {[%emt 0:00:27]} 51. a4 {[%emt 0:00:13][%cal Ba3a4,Ba4a5,Ba5a6,Ba6a7][%mdl 32]} Rxh3 {[%emt 0:00:20]} 52. a5 {[%emt 0:00:05]} Rc3 {[%emt 0:01:52]} 53. a6 {[%emt 0:00:09]} Rc5+ {[%emt 0:00:21]} 54. Kg4 {[%emt 0:00:07]} Ra5 {[%emt 0:00:55]} 55. Ra8 {[%emt 0:00:10]} Kg7 {[%emt 0:00:35]} 56. a7 {[%emt 0:00:10]} Kh7 {[%emt 0:00:31]} 57. f5 {[%emt 0:00:08]} Ra6 {[%emt 0:00:35] [#]} 58. f6 $1 {[%emt 0:00:12][%mdl 64] Promotion} Rxf6 {[%emt 0:00:32]} (58... Kg6 59. Rg8+) 59. Rb8 {[%emt 0:00:10]} Rg6+ {[%emt 0:00:16]} 60. Kf5 {[%emt 0:00:13] Weighted Error Value: White=0.16 (very precise) /Black=0.48} 1-0